[Event "Titled Tuesday Blitz April 11 Late 2023"]
[White "Mickiewicz, Piotr"]
[Black "Thorfinnsson, Bjorn"]
[WhiteFideId "1114891"]
[BlackFideId "2300982"]
[WhiteElo "2246"]
[BlackElo "2395"]
[Result "0-1"]
[Round "11"]
[TimeControl "180+2"]
[Date "2023.04.11"]
[WhiteClock "0:00:01"]
[BlackClock "0:01:29"]

1. Nf3 {[%clk 0:03:00]}  d5 {[%clk 0:02:59]} 2. e3 {[%clk 0:03:00]}  c6 {[%clk 0:02:58]} 3. b3 {[%clk 0:03:00]}  Nf6 {[%clk 0:02:59]} 4. Bb2 {[%clk 0:02:59]}  Bf5 {[%clk 0:02:59]} 5. d3 {[%clk 0:02:57]}  e6 {[%clk 0:02:59]} 6. Nh4 {[%clk 0:02:56]}  Bg6 {[%clk 0:02:59]} 7. Nxg6 {[%clk 0:02:55]}  hxg6 {[%clk 0:02:59]} 8. g3 {[%clk 0:02:55]}  Nbd7 {[%clk 0:02:59]} 9. Bg2 {[%clk 0:02:55]}  Qa5+ {[%clk 0:02:58]} 10. Nd2 {[%clk 0:02:49]}  Bb4 {[%clk 0:02:57]} 11. a3 {[%clk 0:02:48]}  Bc3 {[%clk 0:02:55]} 12. b4 {[%clk 0:02:48]}  Bxd2+ {[%clk 0:02:55]} 13. Qxd2 {[%clk 0:02:47]}  Qc7 {[%clk 0:02:55]} 14. c4 {[%clk 0:02:42]}  a5 {[%clk 0:02:54]} 15. Qc2 {[%clk 0:02:39]}  axb4 {[%clk 0:02:54]} 16. axb4 {[%clk 0:02:39]}  O-O {[%clk 0:02:54]} 17. O-O {[%clk 0:02:37]}  Qb6 {[%clk 0:02:52]} 18. Bd4 {[%clk 0:02:27]}  Qc7 {[%clk 0:02:51]} 19. Qb2 {[%clk 0:02:23]}  Rfc8 {[%clk 0:02:48]} 20. Bc3 {[%clk 0:02:08]}  b5 {[%clk 0:02:36]} 21. c5 {[%clk 0:02:04]}  e5 {[%clk 0:02:33]} 22. e4 {[%clk 0:02:04]}  d4 {[%clk 0:02:32]} 23. Bd2 {[%clk 0:02:03]}  Nf8 {[%clk 0:02:32]} 24. Bh3 {[%clk 0:02:01]}  Re8 {[%clk 0:02:28]} 25. Ra5 {[%clk 0:01:54]}  Rxa5 {[%clk 0:02:26]} 26. bxa5 {[%clk 0:01:54]}  N6d7 {[%clk 0:02:25]} 27. Bb4 {[%clk 0:01:52]}  Qb7 {[%clk 0:02:24]} 28. Ra1 {[%clk 0:01:48]}  Qa6 {[%clk 0:02:24]} 29. f4 {[%clk 0:01:42]}  exf4 {[%clk 0:02:19]} 30. gxf4 {[%clk 0:01:43]}  Ne6 {[%clk 0:02:19]} 31. Qc1 {[%clk 0:01:43]}  g5 {[%clk 0:02:14]} 32. Bxe6 {[%clk 0:01:37]}  Rxe6 {[%clk 0:02:13]} 33. f5 {[%clk 0:01:37]}  Rh6 {[%clk 0:02:11]} 34. Qxg5 {[%clk 0:01:35]}  f6 {[%clk 0:02:10]} 35. Qg3 {[%clk 0:01:27]}  Ne5 {[%clk 0:02:10]} 36. Kf2 {[%clk 0:01:01]}  Rxh2+ {[%clk 0:02:08]} 37. Qxh2 {[%clk 0:01:01]}  Ng4+ {[%clk 0:02:08]} 38. Kg2 {[%clk 0:01:02]}  Nxh2 {[%clk 0:02:08]} 39. Kxh2 {[%clk 0:01:02]}  Kf7 {[%clk 0:02:08]} 40. Kg3 {[%clk 0:00:57]}  g6 {[%clk 0:02:08]} 41. fxg6+ {[%clk 0:00:56]}  Kxg6 {[%clk 0:02:09]} 42. Kf3 {[%clk 0:00:45]}  f5 {[%clk 0:02:08]} 43. e5 {[%clk 0:00:44]}  Kf7 {[%clk 0:02:06]} 44. Rh1 {[%clk 0:00:37]}  Qc8 {[%clk 0:02:03]} 45. Rh6 {[%clk 0:00:27]}  Qg8 {[%clk 0:02:02]} 46. Rf6+ {[%clk 0:00:25]}  Ke7 {[%clk 0:02:01]} 47. a6 {[%clk 0:00:25]}  Qg4+ {[%clk 0:01:59]} 48. Kf2 {[%clk 0:00:21]}  Qf4+ {[%clk 0:01:56]} 49. Kg2 {[%clk 0:00:20]}  Qxe5 {[%clk 0:01:54]} 50. a7 {[%clk 0:00:20]}  Qe2+ {[%clk 0:01:53]} 51. Kg1 {[%clk 0:00:17]}  Qd1+ {[%clk 0:01:51]} 52. Kf2 {[%clk 0:00:17]}  Qc2+ {[%clk 0:01:50]} 53. Kg3 {[%clk 0:00:11]}  Qxd3+ {[%clk 0:01:47]} 54. Kh4 {[%clk 0:00:11]}  Qe4+ {[%clk 0:01:47]} 55. Kh3 {[%clk 0:00:09]}  Qg4+ {[%clk 0:01:40]} 56. Kh2 {[%clk 0:00:10]}  Qe2+ {[%clk 0:01:40]} 57. Kh3 {[%clk 0:00:10]}  Qd3+ {[%clk 0:01:40]} 58. Kh2 {[%clk 0:00:08]}  Qc2+ {[%clk 0:01:40]} 59. Kh3 {[%clk 0:00:08]}  Qb3+ {[%clk 0:01:38]} 60. Kh4 {[%clk 0:00:09]}  Kxf6 {[%clk 0:01:38]} 61. a8=Q {[%clk 0:00:08]}  Qxb4 {[%clk 0:01:38]} 62. Qh8+ {[%clk 0:00:08]}  Ke6 {[%clk 0:01:38]} 63. Qc8+ {[%clk 0:00:08]}  Kd5 {[%clk 0:01:38]} 64. Qxf5+ {[%clk 0:00:08]}  Kc4 {[%clk 0:01:37]} 65. Qe6+ {[%clk 0:00:09]}  Kxc5 {[%clk 0:01:37]} 66. Qe7+ {[%clk 0:00:09]}  Kc4 {[%clk 0:01:38]} 67. Qe6+ {[%clk 0:00:09]}  Kc3 {[%clk 0:01:38]} 68. Qxc6+ {[%clk 0:00:10]}  Qc4 {[%clk 0:01:37]} 69. Qf3+ {[%clk 0:00:10]}  d3+ {[%clk 0:01:38]} 70. Kg3 {[%clk 0:00:09]}  Kc2 {[%clk 0:01:38]} 71. Qf5 {[%clk 0:00:08]}  b4 {[%clk 0:01:37]} 72. Kf2 {[%clk 0:00:09]}  b3 {[%clk 0:01:37]} 73. Ke1 {[%clk 0:00:08]}  Qc3+ {[%clk 0:01:36]} 74. Kf1 {[%clk 0:00:08]}  b2 {[%clk 0:01:36]} 75. Qf2+ {[%clk 0:00:08]}  Kc1 {[%clk 0:01:34]} 76. Kg2 {[%clk 0:00:04]}  Qd2 {[%clk 0:01:34]} 77. Kh1 {[%clk 0:00:02]}  Qd1+ {[%clk 0:01:31]} 78. Kh2 {[%clk 0:00:02]}  Qe2 {[%clk 0:01:31]} 79. Kh1 {[%clk 0:00:02]}  b1=Q {[%clk 0:01:31]} 80. Qg1+ {[%clk 0:00:01]}  Kc2 {[%clk 0:01:29]} 81. Qc1+ {[%clk 0:00:01]}  Qxc1# {[%clk 0:01:29]} 0-1


[Site "https://www.chess.com"]

[Event "Titled Tuesday Blitz April 11 Late 2023"]
[White "Rosen, Eric"]
[Black "Ladan, Nicholas"]
[WhiteFideId "2032562"]
[BlackFideId "30918855"]
[WhiteElo "2331"]
[BlackElo "2167"]
[Result "0-1"]
[Round "11"]
[TimeControl "180+2"]
[Date "2023.04.11"]
[WhiteClock "0:00:01"]
[BlackClock "0:00:04"]

1. d4 {[%clk 0:03:00]}  d5 {[%clk 0:02:59]} 2. Bf4 {[%clk 0:03:01]}  c5 {[%clk 0:02:59]} 3. Nc3 {[%clk 0:03:00]}  Nc6 {[%clk 0:02:54]} 4. e4 {[%clk 0:02:58]}  e5 {[%clk 0:02:36]} 5. exd5 {[%clk 0:02:44]}  exf4 {[%clk 0:02:33]} 6. dxc6 {[%clk 0:02:44]}  bxc6 {[%clk 0:02:24]} 7. Nf3 {[%clk 0:02:12]}  Nf6 {[%clk 0:02:05]} 8. Bc4 {[%clk 0:02:08]}  cxd4 {[%clk 0:01:52]} 9. Nxd4 {[%clk 0:01:49]}  Bd7 {[%clk 0:01:37]} 10. Qd2 {[%clk 0:01:27]}  Bd6 {[%clk 0:01:11]} 11. O-O-O {[%clk 0:01:27]}  O-O {[%clk 0:01:07]} 12. Nde2 {[%clk 0:01:05]}  Be5 {[%clk 0:00:46]} 13. Nxf4 {[%clk 0:01:05]}  Qa5 {[%clk 0:00:39]} 14. Nd3 {[%clk 0:01:04]}  Bxc3 {[%clk 0:00:28]} 15. Qxc3 {[%clk 0:01:05]}  Qxc3 {[%clk 0:00:28]} 16. bxc3 {[%clk 0:01:06]}  Ne4 {[%clk 0:00:28]} 17. Ne5 {[%clk 0:00:43]}  Be6 {[%clk 0:00:27]} 18. Bxe6 {[%clk 0:00:36]}  fxe6 {[%clk 0:00:28]} 19. Rhf1 {[%clk 0:00:36]}  Nxc3 {[%clk 0:00:22]} 20. Rd6 {[%clk 0:00:32]}  Rab8 {[%clk 0:00:20]} 21. Nd7 {[%clk 0:00:06]}  Rb1+ {[%clk 0:00:16]} 22. Kd2 {[%clk 0:00:07]}  Rxf1 {[%clk 0:00:14]} 23. Kxc3 {[%clk 0:00:02]}  R8xf2 {[%clk 0:00:12]} 24. Rxe6 {[%clk 0:00:02]}  h5 {[%clk 0:00:08]} 25. Ne5 {[%clk 0:00:01]}  Rxg2 {[%clk 0:00:06]} 26. h4 {[%clk 0:00:01]}  Re1 {[%clk 0:00:04]} 0-1


[Site "https://www.chess.com"]

[Event "Titled Tuesday Blitz April 11 Late 2023"]
[White "Davidson, Kevin"]
[Black "Silva, Caio Henrique Angelico"]
[WhiteFideId "2056810"]
[BlackFideId "22777210"]
[WhiteElo "2151"]
[BlackElo "2096"]
[Result "0-1"]
[Round "11"]
[TimeControl "180+2"]
[Date "2023.04.11"]
[WhiteClock "0:00:01"]
[BlackClock "0:00:07"]

1. e4 {[%clk 0:03:00]}  c6 {[%clk 0:02:56]} 2. d4 {[%clk 0:03:00]}  d5 {[%clk 0:02:56]} 3. e5 {[%clk 0:03:00]}  c5 {[%clk 0:02:56]} 4. dxc5 {[%clk 0:03:00]}  e6 {[%clk 0:02:57]} 5. a3 {[%clk 0:02:59]}  Bxc5 {[%clk 0:02:56]} 6. Qg4 {[%clk 0:03:00]}  g6 {[%clk 0:02:55]} 7. Nf3 {[%clk 0:03:00]}  h5 {[%clk 0:02:54]} 8. Qf4 {[%clk 0:02:56]}  Nh6 {[%clk 0:02:53]} 9. Bd3 {[%clk 0:02:55]}  Nf5 {[%clk 0:02:48]} 10. O-O {[%clk 0:02:53]}  Nc6 {[%clk 0:02:43]} 11. b4 {[%clk 0:02:34]}  Bb6 {[%clk 0:02:42]} 12. Bb2 {[%clk 0:02:33]}  a5 {[%clk 0:02:41]} 13. b5 {[%clk 0:02:27]}  Nce7 {[%clk 0:02:41]} 14. Nbd2 {[%clk 0:02:27]}  Bd7 {[%clk 0:02:18]} 15. c4 {[%clk 0:02:23]}  Rc8 {[%clk 0:02:16]} 16. Rac1 {[%clk 0:02:22]}  O-O {[%clk 0:01:56]} 17. a4 {[%clk 0:02:17]}  Bc5 {[%clk 0:01:47]} 18. Rfd1 {[%clk 0:02:01]}  Qb6 {[%clk 0:01:46]} 19. Ng5 {[%clk 0:01:56]}  Ne3 {[%clk 0:01:26]} 20. Re1 {[%clk 0:01:44]}  Ng4 {[%clk 0:01:26]} 21. Re2 {[%clk 0:01:38]}  Nxf2 {[%clk 0:00:57]} 22. Rxf2 {[%clk 0:01:36]}  Be3 {[%clk 0:00:57]} 23. Qh4 {[%clk 0:01:10]}  Bxd2 {[%clk 0:00:44]} 24. Bd4 {[%clk 0:01:09]}  Qxd4 {[%clk 0:00:35]} 25. Qxd4 {[%clk 0:01:07]}  Bxc1 {[%clk 0:00:35]} 26. Nf3 {[%clk 0:00:39]}  Ba3 {[%clk 0:00:32]} 27. Qh4 {[%clk 0:00:27]}  dxc4 {[%clk 0:00:24]} 28. Bxc4 {[%clk 0:00:21]}  Nf5 {[%clk 0:00:23]} 29. Qf4 {[%clk 0:00:11]}  Bc5 {[%clk 0:00:22]} 30. Bd3 {[%clk 0:00:08]}  Be3 {[%clk 0:00:19]} 31. Qe4 {[%clk 0:00:05]}  Rc1+ {[%clk 0:00:19]} 32. Bf1 {[%clk 0:00:05]}  Bxf2+ {[%clk 0:00:08]} 33. Kxf2 {[%clk 0:00:05]}  Rfc8 {[%clk 0:00:09]} 34. Qxb7 {[%clk 0:00:03]}  R8c2+ {[%clk 0:00:09]} 35. Be2 {[%clk 0:00:03]}  Be8 {[%clk 0:00:09]} 36. Qa8 {[%clk 0:00:02]}  Kf8 {[%clk 0:00:09]} 37. b6 {[%clk 0:00:02]}  Rb1 {[%clk 0:00:07]} 38. b7 {[%clk 0:00:03]}  Rcb2 {[%clk 0:00:07]} 39. Qxa5 {[%clk 0:00:02]}  Rxb7 {[%clk 0:00:07]} 40. Bb5 {[%clk 0:00:02]}  Bxb5 {[%clk 0:00:07]} 41. axb5 {[%clk 0:00:02]}  Rb2+ {[%clk 0:00:07]} 42. Ke1 {[%clk 0:00:02]}  R2xb5 {[%clk 0:00:08]} 43. Qd8+ {[%clk 0:00:02]}  Kg7 {[%clk 0:00:09]} 44. Qf6+ {[%clk 0:00:02]}  Kg8 {[%clk 0:00:08]} 45. Ng5 {[%clk 0:00:01]}  Rb1+ {[%clk 0:00:07]} 46. Kd2 {[%clk 0:00:01]}  R1b2+ {[%clk 0:00:07]} 47. Kc3 {[%clk 0:00:01]}  Ne3 {[%clk 0:00:07]} 0-1


[Site "https://www.chess.com"]

[Event "Titled Tuesday Blitz April 11 Late 2023"]
[White "Hajiyev, Kanan"]
[Black "Spitzl, Vinzent"]
[WhiteFideId "13404148"]
[BlackFideId "12901253"]
[WhiteElo "2103"]
[BlackElo "2225"]
[Result "0-1"]
[Round "11"]
[TimeControl "180+2"]
[Date "2023.04.11"]
[WhiteClock "0:00:02"]
[BlackClock "0:00:12"]

1. d4 {[%clk 0:03:00]}  Nf6 {[%clk 0:02:59]} 2. Nf3 {[%clk 0:03:01]}  d5 {[%clk 0:02:59]} 3. c4 {[%clk 0:03:02]}  e6 {[%clk 0:02:59]} 4. cxd5 {[%clk 0:03:03]}  exd5 {[%clk 0:02:59]} 5. Nc3 {[%clk 0:03:04]}  Bb4 {[%clk 0:02:59]} 6. Bf4 {[%clk 0:02:58]}  O-O {[%clk 0:02:54]} 7. e3 {[%clk 0:02:58]}  Ne4 {[%clk 0:02:43]} 8. Qc2 {[%clk 0:02:55]}  Bf5 {[%clk 0:02:43]} 9. Bd3 {[%clk 0:02:54]}  c5 {[%clk 0:02:36]} 10. dxc5 {[%clk 0:02:51]}  Nd7 {[%clk 0:02:32]} 11. Nd4 {[%clk 0:02:45]}  Bg6 {[%clk 0:02:32]} 12. c6 {[%clk 0:02:38]}  Ndc5 {[%clk 0:02:28]} 13. Bxe4 {[%clk 0:01:45]}  Bxe4 {[%clk 0:02:26]} 14. c7 {[%clk 0:01:31]}  Qf6 {[%clk 0:02:16]} 15. Qd2 {[%clk 0:01:22]}  Nd3+ {[%clk 0:02:01]} 16. Kf1 {[%clk 0:01:18]}  Qg6 {[%clk 0:01:32]} 17. Bg3 {[%clk 0:01:10]}  h5 {[%clk 0:01:22]} 18. h4 {[%clk 0:01:08]}  f5 {[%clk 0:01:12]} 19. a3 {[%clk 0:01:06]}  f4 {[%clk 0:01:08]} 20. exf4 {[%clk 0:01:00]}  Rxf4 {[%clk 0:01:07]} 21. Rh3 {[%clk 0:00:47]}  Rxf2+ {[%clk 0:00:59]} 22. Qxf2 {[%clk 0:00:34]}  Nxf2 {[%clk 0:00:54]} 23. Kxf2 {[%clk 0:00:35]}  Bc5 {[%clk 0:00:53]} 24. Rd1 {[%clk 0:00:32]}  Qf6+ {[%clk 0:00:50]} 25. Kg1 {[%clk 0:00:26]}  Bxd4+ {[%clk 0:00:49]} 26. Kh2 {[%clk 0:00:27]}  Be5 {[%clk 0:00:45]} 27. Nxd5 {[%clk 0:00:20]}  Bxg3+ {[%clk 0:00:38]} 28. Rxg3 {[%clk 0:00:20]}  Qe5 {[%clk 0:00:34]} 29. Nc3 {[%clk 0:00:11]}  Qxc7 {[%clk 0:00:21]} 30. Nxe4 {[%clk 0:00:11]}  Rf8 {[%clk 0:00:20]} 31. Ng5 {[%clk 0:00:06]}  Rf4 {[%clk 0:00:18]} 32. Rh3 {[%clk 0:00:05]}  Rd4+ {[%clk 0:00:12]} 33. g3 {[%clk 0:00:02]}  Rxd1 {[%clk 0:00:12]} 0-1


[Site "https://www.chess.com"]

[Event "Titled Tuesday Blitz April 11 Late 2023"]
[White "Erzhanov, Arman"]
[Black "Sliwicki, Damian"]
[WhiteFideId "4138821"]
[BlackFideId "1127128"]
[WhiteElo "2138"]
[BlackElo "2030"]
[Result "0-1"]
[Round "11"]
[TimeControl "180+2"]
[Date "2023.04.11"]
[WhiteClock "0:00:02"]
[BlackClock "0:00:06"]

1. e4 {[%clk 0:03:00]}  c5 {[%clk 0:01:42]} 2. Nf3 {[%clk 0:03:00]}  g6 {[%clk 0:01:41]} 3. d4 {[%clk 0:03:00]}  cxd4 {[%clk 0:01:42]} 4. Qxd4 {[%clk 0:03:01]}  Nf6 {[%clk 0:01:42]} 5. e5 {[%clk 0:03:01]}  Nc6 {[%clk 0:01:43]} 6. Qa4 {[%clk 0:03:01]}  Nd5 {[%clk 0:01:43]} 7. Qe4 {[%clk 0:03:02]}  Ndb4 {[%clk 0:01:41]} 8. Bb5 {[%clk 0:03:01]}  d5 {[%clk 0:01:38]} 9. Qxb4 {[%clk 0:03:00]}  Bg7 {[%clk 0:01:33]} 10. Bxc6+ {[%clk 0:02:58]}  bxc6 {[%clk 0:01:33]} 11. O-O {[%clk 0:02:58]}  O-O {[%clk 0:01:34]} 12. Be3 {[%clk 0:02:57]}  Ba6 {[%clk 0:01:33]} 13. Rd1 {[%clk 0:02:56]}  Rb8 {[%clk 0:01:33]} 14. Qa3 {[%clk 0:02:55]}  Be2 {[%clk 0:01:31]} 15. Re1 {[%clk 0:02:52]}  Bxf3 {[%clk 0:01:31]} 16. gxf3 {[%clk 0:02:53]}  Bxe5 {[%clk 0:01:30]} 17. c3 {[%clk 0:02:51]}  Qd7 {[%clk 0:01:12]} 18. Nd2 {[%clk 0:02:30]}  Qh3 {[%clk 0:01:01]} 19. f4 {[%clk 0:02:12]}  Bd6 {[%clk 0:00:58]} 20. b4 {[%clk 0:02:08]}  e5 {[%clk 0:00:45]} 21. fxe5 {[%clk 0:01:41]}  Bxe5 {[%clk 0:00:41]} 22. f4 {[%clk 0:01:36]}  Bg7 {[%clk 0:00:19]} 23. Rac1 {[%clk 0:01:16]}  Rfe8 {[%clk 0:00:19]} 24. Qxa7 {[%clk 0:01:16]}  Ra8 {[%clk 0:00:18]} 25. Qc5 {[%clk 0:00:44]}  Rxa2 {[%clk 0:00:18]} 26. Rcd1 {[%clk 0:00:43]}  Qg4+ {[%clk 0:00:15]} 27. Kh1 {[%clk 0:00:33]}  Bf8 {[%clk 0:00:13]} 28. Qd4 {[%clk 0:00:32]}  c5 {[%clk 0:00:12]} 29. bxc5 {[%clk 0:00:31]}  Re4 {[%clk 0:00:13]} 30. Qd3 {[%clk 0:00:26]}  Qh3 {[%clk 0:00:06]} 31. Qf1 {[%clk 0:00:07]}  Qh5 {[%clk 0:00:05]} 32. Nf3 {[%clk 0:00:07]}  Re6 {[%clk 0:00:02]} 33. Rd2 {[%clk 0:00:06]}  Ra3 {[%clk 0:00:01]} 34. Bd4 {[%clk 0:00:06]}  Rxe1 {[%clk 0:00:01]} 35. Nxe1 {[%clk 0:00:05]}  Ra1 {[%clk 0:00:02]} 36. Re2 {[%clk 0:00:05]}  Qf5 {[%clk 0:00:02]} 37. Qf3 {[%clk 0:00:04]}  Qb1 {[%clk 0:00:02]} 38. Qf2 {[%clk 0:00:04]}  Qd3 {[%clk 0:00:02]} 39. Kg2 {[%clk 0:00:04]}  Qf5 {[%clk 0:00:02]} 40. Qe3 {[%clk 0:00:05]}  Qg4+ {[%clk 0:00:02]} 41. Kf2 {[%clk 0:00:03]}  Be7 {[%clk 0:00:02]} 42. Qg3 {[%clk 0:00:04]}  Bh4 {[%clk 0:00:02]} 43. Qxh4 {[%clk 0:00:03]}  Qxh4+ {[%clk 0:00:03]} 44. Kf1 {[%clk 0:00:04]}  Qh3+ {[%clk 0:00:03]} 45. Kf2 {[%clk 0:00:04]}  f6 {[%clk 0:00:03]} 46. c6 {[%clk 0:00:03]}  Qh4+ {[%clk 0:00:03]} 47. Kf3 {[%clk 0:00:03]}  Qh3+ {[%clk 0:00:03]} 48. Kf2 {[%clk 0:00:03]}  Qxh2+ {[%clk 0:00:04]} 49. Kf1 {[%clk 0:00:04]}  Qh1+ {[%clk 0:00:04]} 50. Bg1 {[%clk 0:00:04]}  Qh4 {[%clk 0:00:05]} 51. c7 {[%clk 0:00:04]}  Qh3+ {[%clk 0:00:05]} 52. Kf2 {[%clk 0:00:04]}  Qh4+ {[%clk 0:00:05]} 53. Kf3 {[%clk 0:00:04]}  Qh3+ {[%clk 0:00:06]} 54. Kf2 {[%clk 0:00:03]}  Qc8 {[%clk 0:00:07]} 55. Re7 {[%clk 0:00:03]}  Ra2+ {[%clk 0:00:07]} 56. Kf3 {[%clk 0:00:02]}  Qh3# {[%clk 0:00:06]} 0-1


[Site "https://www.chess.com"]

[Event "Titled Tuesday Blitz April 11 Late 2023"]
[White "Kornyukov, Alexey"]
[Black "Lorenzo De La Riva, Lazaro"]
[WhiteFideId "4150457"]
[BlackFideId "2268809"]
[WhiteElo "2352"]
[BlackElo "2294"]
[Result "1-0"]
[Round "11"]
[TimeControl "180+2"]
[Date "2023.04.11"]
[WhiteClock "0:00:06"]
[BlackClock "0:00:01"]

1. d4 {[%clk 0:03:00]}  b6 {[%clk 0:02:57]} 2. c4 {[%clk 0:03:00]}  Bb7 {[%clk 0:02:56]} 3. Nc3 {[%clk 0:03:01]}  e6 {[%clk 0:02:56]} 4. a3 {[%clk 0:03:01]}  f5 {[%clk 0:02:55]} 5. d5 {[%clk 0:02:58]}  Nf6 {[%clk 0:02:55]} 6. g3 {[%clk 0:02:50]}  exd5 {[%clk 0:02:53]} 7. cxd5 {[%clk 0:02:49]}  Na6 {[%clk 0:02:52]} 8. Bg2 {[%clk 0:02:43]}  Nc5 {[%clk 0:02:51]} 9. Nh3 {[%clk 0:02:38]}  Nce4 {[%clk 0:02:50]} 10. Nxe4 {[%clk 0:02:22]}  Nxe4 {[%clk 0:02:51]} 11. O-O {[%clk 0:02:18]}  Bd6 {[%clk 0:02:47]} 12. f3 {[%clk 0:02:06]}  Nf6 {[%clk 0:02:45]} 13. e4 {[%clk 0:01:59]}  Bc5+ {[%clk 0:02:44]} 14. Kh1 {[%clk 0:01:59]}  fxe4 {[%clk 0:02:44]} 15. fxe4 {[%clk 0:01:59]}  O-O {[%clk 0:02:44]} 16. e5 {[%clk 0:01:57]}  Ne8 {[%clk 0:02:29]} 17. Bg5 {[%clk 0:01:47]}  Qc8 {[%clk 0:02:18]} 18. Rxf8+ {[%clk 0:01:45]}  Bxf8 {[%clk 0:02:18]} 19. Qf3 {[%clk 0:01:42]}  c6 {[%clk 0:01:41]} 20. Rf1 {[%clk 0:01:41]}  Nc7 {[%clk 0:01:40]} 21. Qf7+ {[%clk 0:01:33]}  Kh8 {[%clk 0:01:39]} 22. d6 {[%clk 0:01:16]}  Ne6 {[%clk 0:01:38]} 23. Be7 {[%clk 0:01:11]}  c5 {[%clk 0:01:26]} 24. Bxb7 {[%clk 0:00:42]}  Qxb7+ {[%clk 0:01:25]} 25. Kg1 {[%clk 0:00:42]}  h6 {[%clk 0:01:20]} 26. Nf4 {[%clk 0:00:38]}  Qe4 {[%clk 0:00:45]} 27. Ng6+ {[%clk 0:00:33]}  Kh7 {[%clk 0:00:44]} 28. Nxf8+ {[%clk 0:00:33]}  Nxf8 {[%clk 0:00:32]} 29. Bxf8 {[%clk 0:00:32]}  Qe3+ {[%clk 0:00:31]} 30. Rf2 {[%clk 0:00:29]}  Qe1+ {[%clk 0:00:30]} 31. Kg2 {[%clk 0:00:29]}  Qe4+ {[%clk 0:00:30]} 32. Kh3 {[%clk 0:00:22]}  Qxe5 {[%clk 0:00:29]} 33. Qf5+ {[%clk 0:00:20]}  Qxf5+ {[%clk 0:00:30]} 34. Rxf5 {[%clk 0:00:21]}  Kg6 {[%clk 0:00:27]} 35. Rf4 {[%clk 0:00:19]}  Rc8 {[%clk 0:00:27]} 36. Be7 {[%clk 0:00:15]}  c4 {[%clk 0:00:26]} 37. Kg4 {[%clk 0:00:14]}  b5 {[%clk 0:00:26]} 38. h4 {[%clk 0:00:14]}  h5+ {[%clk 0:00:25]} 39. Kf3 {[%clk 0:00:14]}  Rc5 {[%clk 0:00:25]} 40. Rf8 {[%clk 0:00:13]}  Rd5 {[%clk 0:00:20]} 41. Rd8 {[%clk 0:00:13]}  Rd3+ {[%clk 0:00:18]} 42. Kf4 {[%clk 0:00:12]}  a5 {[%clk 0:00:11]} 43. Rxd7 {[%clk 0:00:12]}  b4 {[%clk 0:00:12]} 44. axb4 {[%clk 0:00:12]}  axb4 {[%clk 0:00:12]} 45. Rc7 {[%clk 0:00:12]}  c3 {[%clk 0:00:10]} 46. bxc3 {[%clk 0:00:12]}  b3 {[%clk 0:00:10]} 47. Rb7 {[%clk 0:00:11]}  Rxc3 {[%clk 0:00:09]} 48. d7 {[%clk 0:00:12]}  Rc4+ {[%clk 0:00:08]} 49. Ke3 {[%clk 0:00:11]}  Rc3+ {[%clk 0:00:07]} 50. Kd2 {[%clk 0:00:11]}  Rc2+ {[%clk 0:00:07]} 51. Kd1 {[%clk 0:00:11]}  Rf2 {[%clk 0:00:05]} 52. d8=Q {[%clk 0:00:10]}  Kf5 {[%clk 0:00:06]} 53. Qd5+ {[%clk 0:00:10]}  Kg4 {[%clk 0:00:07]} 54. Qe4+ {[%clk 0:00:09]}  Kh3 {[%clk 0:00:06]} 55. Rxb3 {[%clk 0:00:09]}  g5 {[%clk 0:00:04]} 56. Qh1+ {[%clk 0:00:08]}  Rh2 {[%clk 0:00:04]} 57. Qf1+ {[%clk 0:00:09]}  Kg4 {[%clk 0:00:02]} 58. hxg5 {[%clk 0:00:07]}  h4 {[%clk 0:00:01]} 59. gxh4 {[%clk 0:00:06]} 1-0


[Site "https://www.chess.com"]

[Event "Titled Tuesday Blitz April 11 Late 2023"]
[White "Womacka, Mathias"]
[Black "Garcia Cuenca, Victor"]
[WhiteFideId "4611390"]
[BlackFideId "2250829"]
[WhiteElo "2377"]
[BlackElo "2329"]
[Result "1-0"]
[Round "11"]
[TimeControl "180+2"]
[Date "2023.04.11"]
[WhiteClock "0:01:00"]
[BlackClock "0:00:25"]

1. e4 {[%clk 0:03:00]}  c6 {[%clk 0:02:59]} 2. d4 {[%clk 0:03:00]}  d6 {[%clk 0:02:59]} 3. Nc3 {[%clk 0:02:59]}  g6 {[%clk 0:03:00]} 4. f4 {[%clk 0:02:58]}  Bg7 {[%clk 0:03:01]} 5. Nf3 {[%clk 0:02:59]}  b5 {[%clk 0:02:59]} 6. Bd3 {[%clk 0:02:55]}  a6 {[%clk 0:02:57]} 7. O-O {[%clk 0:02:55]}  Bb7 {[%clk 0:02:55]} 8. Kh1 {[%clk 0:02:49]}  Nd7 {[%clk 0:02:56]} 9. Qe1 {[%clk 0:02:48]}  e5 {[%clk 0:02:52]} 10. dxe5 {[%clk 0:02:42]}  dxe5 {[%clk 0:02:53]} 11. f5 {[%clk 0:02:43]}  Qe7 {[%clk 0:02:33]} 12. Bg5 {[%clk 0:02:36]}  f6 {[%clk 0:02:31]} 13. Be3 {[%clk 0:02:36]}  Nh6 {[%clk 0:02:26]} 14. Nh4 {[%clk 0:02:08]}  g5 {[%clk 0:02:18]} 15. Nf3 {[%clk 0:02:08]}  Ng4 {[%clk 0:02:15]} 16. Bg1 {[%clk 0:02:06]}  h5 {[%clk 0:02:15]} 17. a4 {[%clk 0:02:04]}  b4 {[%clk 0:01:59]} 18. Nd1 {[%clk 0:01:59]}  a5 {[%clk 0:01:53]} 19. b3 {[%clk 0:01:56]}  Qd8 {[%clk 0:01:40]} 20. Nb2 {[%clk 0:01:54]}  Bf8 {[%clk 0:01:39]} 21. Bc4 {[%clk 0:01:46]}  Bc5 {[%clk 0:01:37]} 22. Rd1 {[%clk 0:01:19]}  Qb6 {[%clk 0:01:10]} 23. Be6 {[%clk 0:01:09]}  Bc8 {[%clk 0:00:36]} 24. Nc4 {[%clk 0:01:07]}  Qa7 {[%clk 0:00:32]} 25. Nd6+ {[%clk 0:01:02]}  Ke7 {[%clk 0:00:25]} 26. Nxc8+ {[%clk 0:01:01]}  Raxc8 {[%clk 0:00:25]} 27. Rxd7+ {[%clk 0:01:00]} 1-0


[Site "https://www.chess.com"]

[Event "Titled Tuesday Blitz April 11 Late 2023"]
[White "Zampronha, Wladimir Camilo"]
[Black "Mikhalsky, Vladimir"]
[WhiteFideId "2103087"]
[BlackFideId "14144352"]
[WhiteElo "2176"]
[BlackElo "2236"]
[Result "0-1"]
[Round "11"]
[TimeControl "180+2"]
[Date "2023.04.11"]
[WhiteClock "0:00:15"]
[BlackClock "0:01:14"]

1. e4 {[%clk 0:02:18]}  g6 {[%clk 0:02:54]} 2. d4 {[%clk 0:02:17]}  Bg7 {[%clk 0:02:53]} 3. Nc3 {[%clk 0:02:17]}  d6 {[%clk 0:02:54]} 4. Bg5 {[%clk 0:02:14]}  h6 {[%clk 0:02:53]} 5. Be3 {[%clk 0:02:14]}  a6 {[%clk 0:02:48]} 6. Qd2 {[%clk 0:02:13]}  Nf6 {[%clk 0:02:46]} 7. f3 {[%clk 0:02:12]}  b5 {[%clk 0:02:46]} 8. O-O-O {[%clk 0:02:12]}  Nbd7 {[%clk 0:02:45]} 9. g4 {[%clk 0:02:11]}  Nb6 {[%clk 0:02:44]} 10. Kb1 {[%clk 0:02:09]}  b4 {[%clk 0:02:43]} 11. Nce2 {[%clk 0:02:08]}  Nc4 {[%clk 0:02:40]} 12. Qd3 {[%clk 0:02:08]}  Nxe3 {[%clk 0:02:40]} 13. Qxe3 {[%clk 0:02:09]}  a5 {[%clk 0:02:37]} 14. d5 {[%clk 0:02:06]}  h5 {[%clk 0:02:07]} 15. g5 {[%clk 0:02:04]}  Nd7 {[%clk 0:02:07]} 16. Nd4 {[%clk 0:02:04]}  Bb7 {[%clk 0:02:03]} 17. Bb5 {[%clk 0:01:59]}  O-O {[%clk 0:02:03]} 18. Nc6 {[%clk 0:01:56]}  Bxc6 {[%clk 0:02:00]} 19. Bxc6 {[%clk 0:01:57]}  Rb8 {[%clk 0:01:59]} 20. Qa7 {[%clk 0:01:50]}  Ne5 {[%clk 0:01:56]} 21. Qxa5 {[%clk 0:01:47]}  Nc4 {[%clk 0:01:52]} 22. Qa6 {[%clk 0:01:34]}  Nxb2 {[%clk 0:01:51]} 23. Re1 {[%clk 0:01:31]}  Rb6 {[%clk 0:01:50]} 24. Qe2 {[%clk 0:01:16]}  Qb8 {[%clk 0:01:36]} 25. f4 {[%clk 0:01:16]}  Bc3 {[%clk 0:01:31]} 26. Nf3 {[%clk 0:01:13]}  Qa7 {[%clk 0:01:26]} 27. Nd2 {[%clk 0:00:13]}  Rxc6 {[%clk 0:01:21]} 28. dxc6 {[%clk 0:00:14]}  Ra8 {[%clk 0:01:20]} 29. Nb3 {[%clk 0:00:14]}  Qxa2+ {[%clk 0:01:17]} 30. Kc1 {[%clk 0:00:15]}  Qa1+ {[%clk 0:01:14]} 0-1


[Site "https://www.chess.com"]